Cogmind - Beta 13 @@@ ROGUE MODE // 2024.04.01 @ 16:58:34 Player: zsh Result: Destroyed by Y-45 Defender with Heavy Assault Rifle Performance ------------- Evolutions (1) 500 Regions Visited (2) 400 Robots Destroyed (38) 190 Value Destroyed (768) 768 Prototype IDs (2) 40 Alien Tech Used (0) 0 Bonus (27) 27 TOTAL SCORE: 1925 Bonus ------- High Alert Combat Kills 27 Cogmind --------- Core Integrity 0/400 Matter 296/300 Energy 100/100 System Corruption 0% Temperature Cool (9) Movement Core (50) Location -9/Materials Parts ------- > --- POWER (2) -------- (None) > --- PROPULSION (2) --- (None) > --- UTILITY (2) ------ Hacking Suite > --- WEAPON (3) ------- (None) > --- INVENTORY (5) ---- Aluminum Leg Light Armor Plating Mining Laser Peak State ------------ > --- POWER ------------ Light Ion Engine Improved Ion Engine > --- PROPULSION ------- Light Treads Light Treads > --- UTILITY ---------- Hardlight Generator Hacking Suite > --- WEAPON ----------- EM Pulse Gun Assault Rifle Grenade Launcher > --- INVENTORY -------- Aluminum Leg Light Armor Plating Rocket Launcher Mining Laser [Rating: 14] Favorites ----------- Power Light Ion Engine Engine Light Ion Engine Propulsion Aluminum Leg Treads Light Treads Leg Aluminum Leg Utility Hacking Suite Device Hardlight Generator Hackware Hacking Suite Protection Light Armor Plating Weapon Assault Rifle Energy Gun EM Pulse Gun Ballistic Gun Assault Rifle Launcher Grenade Launcher Impact Weapon Flail Build | -11 -10 -9 ------- Run | Yrd Mat Mat Slots Evolved 2 | . . 2 Power 1 | . . 1 Propulsion . | . . . Utility . | . . . Weapon 1 | . . 1 Parts Attached 21 | 5 4 12 Power 4 | 1 . 3 Engine 4 | 1 . 3 Core . | . . . Reactor . | . . . Propulsion 5 | 2 . 3 Treads 2 | . . 2 Leg 3 | 2 . 1 Wheel . | . . . Hover . | . . . Flight . | . . . Utility 4 | . 2 2 Device 1 | . . 1 Storage . | . . . Processor . | . . . Hackware 1 | . 1 . Protection 2 | . 1 1 Artifact . | . . . Weapon 8 | 2 2 4 Energy Gun 2 | 1 . 1 Energy Cannon . | . . . Ballistic Gun 1 | 1 . . Ballistic Cannon . | . . . Launcher 4 | . 2 2 Special Weapon . | . . . Impact Weapon 1 | . . 1 Slashing Weapon . | . . . Piercing Weapon . | . . . Special Melee Weapon . | . . . Unidentified Prototypes . | . . . Parts Lost 11 | . . 11 Power 3 | . . 3 Propulsion 2 | . . 2 Utility 1 | . . 1 Weapon 5 | . . 5 Highest Loss Streak 8 | . . 8 To Critical Strikes . | . . . Average Slot Usage (%) 85 | . 77 88 Engine 16 | . 14 17 Treads 9 | . . 13 Leg 13 | . 28 7 Device 3 | . . 5 Hackware 9 | . 4 11 Protection 4 | . 2 5 Energy Gun 5 | . 1 6 Ballistic Gun 11 | . 14 10 Launcher 10 | . 12 9 Naked Turns . | . . . Heaviest Build 22 | 7 11 22 Greatest Support 40 | 20 20 40 Greatest Overweight (x) 1 | . . 1 Average Overweight (x) . | . . . Largest Inventory Capacity 5 | 5 5 5 Average Capacity 5 | 5 5 5 Most Carried 5 | 3 5 5 Average Carried 4 | . 4 4 Final Capacity 5 | 5 5 5 Final Carried 5 | 3 5 3 Class Distribution -------------------- 65% | Mutant 25% | Scavenger-Tank 9% | Tank Dominant Class ---------------- Mutant | -10/Materials Mutant | -9/Materials Resources | -11 -10 -9 ----------- Run | Yrd Mat Mat Matter Collected 653 | 262 14 377 Remotely . | . . . Salvage Created 889 | 67 86 736 Parts 71 | 5 13 53 Haulers Intercepted . | . . . Recyclers Shooed . | . . . Parts Field Recycled . | . . . Retrieved Matter . | . . . Parts Self-Destructed . | . . . Prevented . | . . . Kills | -11 -10 -9 ------- Run | Yrd Mat Mat Combat Hostiles Destroyed 22 | 1 3 18 Guns 9 | 1 2 6 AOE 13 | . 1 12 Classes Destroyed 10 | 2 6 2 Worker 2 | . 1 1 Builder 5 | . 1 4 Tunneler 1 | 1 . . Recycler 1 | . . 1 Mechanic 2 | . 1 1 Operator 2 | . 1 1 Watcher 3 | . 1 2 Swarmer 8 | . 3 5 Grunt 11 | 1 . 10 Sentry 3 | . . 3 Best Kill Streak 10 | 2 6 10 Combat Bots Only 6 | 1 3 6 Max Kills in Single Turn 4 | 1 2 4 Gunslinging . | . . . Exploded 2 | . 1 2 Melee . | . . . Uniques/NPCs Destroyed . | . . . Combat | -11 -10 -9 -------- Run | Yrd Mat Mat Hostile Shots Fired 143 | 4 9 130 Missed 35 | 1 2 32 Damage Taken 1308 | 34 92 1182 Core 423 | . 22 401 Absorbed by Shields 92 | . . 92 Core Remaining (%) 95 | 100 91 . Volleys Fired 61 | 4 13 44 Largest 2 | 2 2 2 Hottest 73 | 60 50 73 Shots Fired 85 | 8 21 56 Gun 65 | 8 13 44 Cannon . | . . . Launcher 20 | . 8 12 Special . | . . . Kinetic 33 | 4 13 16 Thermal . | . . . Explosive 20 | . 8 12 Electromagnetic 32 | 4 . 28 Robot Hit Streak 5 | 5 4 5 Robot Miss Streak 4 | 1 4 4 Penetration Max . | . . . Secondary Targets 2 | . . 2 Max Gunslinging Chain 1 | . . 1 Shots Hit Robots 50 | 6 7 37 Core Hits 66 | 3 15 48 Critical Kills . | . . . Critical Parts Destroyed . | . . . Critical Strikes . | . . . Melee Attacks 10 | . . 10 Impact 10 | . . 10 Slashing . | . . . Piercing . | . . . Sneak Attacks . | . . . Combat Hostiles . | . . . Follow-up Attacks . | . . . Damage Inflicted 2185 | 76 533 1576 Guns 487 | 76 95 316 Cannons . | . . . Explosions 1543 | . 438 1105 Melee 145 | . . 145 Ramming 10 | . . 10 Kinetic 244 | 52 95 97 Thermal . | . . . Explosive 1535 | . 430 1105 Electromagnetic 251 | 24 8 219 Impact 145 | . . 145 Slashing . | . . . Piercing . | . . . Highest Corruption 2 | . 2 . Average Corruption 2 | . 2 . Corruption Purged . | . . . Corruption Blocked . | . . . Overload Shots . | . . . Overflow Damage 51 | . 4 47 Projectiles . | . . . Explosions 51 | . 4 47 Melee . | . . . Knockbacks . | . . . Impact . | . . . Kinetic . | . . . Secondary . | . . . Self-Inflicted Damage 113 | . 24 89 Shots 6 | . 2 4 Rammed . | . . . Targets Rammed 1 | . . 1 Kicked . | . . . Crushed 1 | . . 1 Highest Temperature 99 | 18 5 99 Average Temperature 20 | 12 5 21 Received Heat Transfer 468 | 18 30 420 Siege Activations . | . . . Robots Corrupted . | . . . Combat Hostiles . | . . . Parts Fried . | . . . Impact Corruptions . | . . . Robots Melted . | . . . Combat Hostiles . | . . . Parts Melted . | . . . Heat Transferred . | . . . Parts Sabotaged . | . . . Parts Stolen . | . . . Parts Stripped . | . . . Power Chain Reactions . | . . . Alert | -11 -10 -9 ------- Run | Yrd Mat Mat Peak Influence 469 | 25 204 469 Initial 85 | . 16 85 Average 130 | 6 123 154 Maximum Alert Level 2 | . 1 2 Low Security (%) 81 | 100 96 72 Level 1 15 | . 3 22 Level 2 2 | . . 4 Level 3 . | . . . Level 4 . | . . . Level 5 . | . . . High Security . | . . . Max Security . | . . . Squads Dispatched 4 | . 1 3 Investigation 1 | . . 1 Extermination . | . . . Reinforcement 3 | . 1 2 Assault . | . . . Garrison . | . . . Intercept . | . . . Searches Triggered . | . . . Construction Impeded 1 | . . 1 Haulers Reinforced . | . . . Active Scanning Responses . | . . . Cargo Convoy Interrupts . | . . . Stealth | -11 -10 -9 --------- Run | Yrd Mat Mat Distress Signals 5 | . 1 4 Communications Jammed . | . . . Distress Signals . | . . . Times Spotted 42 | 1 10 31 Peak Tracking Total 9 | 1 4 9 Tactical Retreats 2 | . . 2 Traps | -11 -10 -9 ------- Run | Yrd Mat Mat Traps Triggered 1 | . 1 . Indirectly . | . . . Trap Hack Attempts . | . . . Triggered . | . . . Disarmed . | . . . Reprogrammed . | . . . Reused . | . . . Traps Extracted . | . . . Installed . | . . . Triggered 1 | . . 1 Machines | -11 -10 -9 ---------- Run | Yrd Mat Mat Machines Disabled 2 | . 2 . Max in Single Turn 1 | . 1 . Machines Repaired . | . . . Machines Dismantled . | . . . Machines Sabotaged . | . . . Overloaded Fab Kills . | . . . Hacking | -11 -10 -9 --------- Run | Yrd Mat Mat Machines Accessed 5 | . 3 2 Terminals 3 | . 2 1 Fabricators . | . . . Repair Stations . | . . . Recycling Units 2 | . 1 1 Scanalyzers . | . . . Garrison Access . | . . . Total Hacks 14 | . 6 8 Successful 8 | . 4 4 Failed 6 | . 2 4 Catastrophic . | . . . Database Lockouts . | . . . Manual . | . . . Terminals 7 | . 3 4 Fabricators . | . . . Repair Stations . | . . . Recycling Units 7 | . 3 4 Scanalyzers . | . . . Garrison Access . | . . . Terminal Hacks 5 | . 2 3 Record 1 | . 1 . Prototype ID Bank 1 | . . 1 Branch Access Points 1 | . 1 . Alert Level 1 | . . 1 Unreport Threat 1 | . . 1 Fabricator Hacks . | . . . Repair Station Hacks . | . . . Recycling Unit Hacks 3 | . 2 1 Report Inventory 1 | . 1 . Retrieve Matter 2 | . 1 1 Scanalyzer . | . . . Garrison Access Hacks . | . . . Unauthorized Hacks . | . . . Terminals . | . . . Fabricators . | . . . Repair Stations . | . . . Recycling Units . | . . . Scanalyzers . | . . . Garrison Access . | . . . Data Cores Recovered 1 | . . 1 Used . | . . . Hacking Detections 3 | . 1 2 Full Trace Events . | . . . Feedback Events . | . . . Feedback Blocked . | . . . Robot Schematics Acquired . | . . . Robots Built . | . . . Authchips . | . . . Time . | . . . Total Robot Build Rating . | . . . Part Schematics Acquired . | . . . Parts Built . | . . . Authchips . | . . . Time . | . . . Total Part Build Rating . | . . . Parts Repaired . | . . . Time . | . . . Parts Recycled . | . . . Recycled Matter . | . . . Retrieved Matter . | . . . Retrieved Components . | . . . Parts Scanalyzed . | . . . Part Schematics Acquired . | . . . Parts Damaged . | . . . Bothacking | -11 -10 -9 ------------ Run | Yrd Mat Mat Used RIF Installer . | . . . Robots Hacked . | . . . Non-combat . | . . . Combat . | . . . Robot Hacks Applied . | . . . Relay Couplers Released . | . . . Fabnet Peak Effective % . | . . . Robots Rewired . | . . . Allies Hacked . | . . . Hacks Repelled . | . . . Allies | -11 -10 -9 -------- Run | Yrd Mat Mat Total Allies . | . . . Largest Group . | . . . Highest-Rated Group . | . . . Highest-Rated Ally . | . . . Total Orders . | . . . Ally Attacks . | . . . Total Damage . | . . . Kills . | . . . Allies Corrupted . | . . . Allies Melted . | . . . Intel | -11 -10 -9 ------- Run | Yrd Mat Mat Robot Analysis Total . | . . . Derelict Logs Recovered . | . . . Drone Launches . | . . . Drone Recoveries . | . . . Exploration | -11 -10 -9 ------------- Run | Yrd Mat Mat Turns Passed 1047 | 117 267 663 Spaces Moved 644 | 95 186 363 Core 31 | 30 . 1 Treads 202 | . . 202 Legs 411 | 65 186 160 Wheels . | . . . Hover . | . . . Flight . | . . . Fastest Speed 50 | 50 120 50 Average Speed 129 | 97 120 142 Slowest Speed 190 | 120 120 190 Overloaded Moves . | . . . Propulsion Burnouts . | . . . Robots Hopped . | . . . Cave-ins Triggered . | . . . Exploration Rate (%) 20 | 5 31 25 Regions Visited 2 Branch Regions . Pre-discovered Areas . | . . . Known Exits Taken . | . . . Unknown Exits Taken 2 | 1 1 . Scrap Searched . | . . . Spaces Dug . | . . . Terrain Destroyed 135 | . 42 93 Melee . | . . . Projectile . | . . . AOE 135 | . 42 93 Terrain Rammed . | . . . Walls Destroyed . | . . . Machines Disabled . | . . . Actions | -11 -10 -9 --------- Run | Yrd Mat Mat Total 758 | 111 209 438 Wait . | . . . Move 642 | 94 185 363 Hop . | . . . Pick Up 13 | 8 4 1 Fast Attach 8 | . 2 6 Attach 11 | 5 1 5 Detach 4 | . 1 3 Swap 2 | . 1 1 Drop 6 | . 2 4 Fire 61 | 4 13 44 Melee 10 | . . 10 Ram . | . . . Kick . | . . . Crush 1 | . . 1 Escape Stasis . | . . . Rewire . | . . . Trap . | . . . Miscellaneous . | . . . Route ------- -11/Scrapyard -10/Materials (discovered 2 exits: *Mat / Min) -9/Materials History --------- Turn | Location | Event 2 | -11/Scrapyard | Met Revision 17 72 | -11/Scrapyard | Discovered new exit (range 8) 118 | -11/Scrapyard | Entered Materials 263 | -10/Materials | Identified exit to Mines 289 | -10/Materials | Discovered new exit (range 16) 330 | -10/Materials | Build established: Mutant 385 | -10/Materials | Entered another Materials area 385 | -9/Materials | Evolved 2 slots: Power x1, Weapon x1 1021 | -9/Materials | Core integrity fell below 50% 1044 | -9/Materials | Core integrity fell below 20% 1048 | -9/Materials | Destroyed by Y-45 Defender with Heavy Assault Rifle Last Messages --------------- U-05 Engineer lays Concrete. U-05 Engineer sends out distress signal. K-01 Serf collects debris. U-05 Engineer lays Concrete. Hardlight Generator destroyed. U-05 Engineer lays Concrete. U-05 Engineer builds a Wall. U-05 Engineer lays Concrete. K-01 Serf collects debris. U-05 Engineer lays Concrete. U-05 Engineer builds a Wall. U-05 Engineer lays Concrete. U-05 Engineer builds a Wall. U-05 Engineer lays Concrete. K-01 Serf collects debris. U-05 Engineer lays Concrete. U-05 Engineer builds a Wall. U-05 Engineer lays Concrete. U-05 Engineer builds a Wall. Flail destroyed. Map ----- +----------------------------------------------------+ | ?????????????????????????????????????????????????? | | ?????????????????????????????????????????????????? | | ?????????????????????????????????????????????????? | | ?????????????????????????????????????????????????? | | ?????????????????????????????????????????????????? | | ?????????????????????????????????????????????????? | | ?????????????????????????????????? ????????????? ? | | ?????????????????????????????????? ????????????? ? | | ?????????????????????????????????? #???????????? ? | | ?????????????????????############# #???????????? # | | ?????????????????????# = # #???????????# # | | ?????????????????#/??# # #??????????? # | | ????????????????? # """ """ # ??????????? * | | ??????????????????? / """ """ # #???????????#%# | | ?????????????????????# """ """ # #???????????#!# | | ?????????????????????# # #???????????#%# | | ??????????????????????? # #????????#### # | | ???????????????????????##+#####+## #????????# ##=# | | ??????????????????????### % #?????#### %# | | ??????????????????????# # == #???### # # | | ??????????????????????# # [%!% ########## %# | | ??????????????????????# #%u * =!+ | | ??????????????????????# #u# ############# #### | | ???????????????????????##u##??#####???#### #### | | ???????????????????????#ss #????????????## ##?# | | ???????????????????????##@##????????????## #####?# | | ????????????????????????#Y#??????????????# #?????# | | ???????????????????????? ??????????????# #?????# | | ???????????????????????? ??????????????# #???### | | ??????????????????????? ?????????????# #???# | | ??????????????????????? ?????????????# #???# " | | ??????????????????????# #????????????# #???# " | | ??????????????????????# #????????????# #???# " | | ??????????????????????# #????????????#+#???# | | ?????????????????????? ????????????? ????# | | ?????????????????????? ????????????? ????# | | ?????????????????????? ?????????????"????# | | ?????????????????????# ????????????"????# | | ?????????????????????# ?????????????????### | | ?????????????????????# #???????????????????? | | ??????????????????????? ?????????????????????? | | ?????????????????????????????????????????????????? | | ?????????????????????????????????????????????????? | | ?????????????????????????????????????????????????? | | ?????????????????????????????????????????????????? | | ?????????????????????????????????????????????????? | | ?????????????????????????????????????????????????? | | ?????????????????????????????????????????????????? | | ?????????????????????????????????????????????????? | | ?????????????????????????????????????????????????? | +----------------------------------------------------+ Best States ------------- Heat Dissipation 28 Energy Generation 17 Energy Capacity 290 Matter Stores 300 Matter Capacity 300 Sight Range 16 Terrain Scan Density 10 Armor Coverage 150 Evasion (%) 55 Recoil Reduction 2 Offensive Hacking 10 Item Schematics ----------------- None Robot Schematics ------------------ None Fabricated ------------ Nothing Alien Tech Used ----------------- None Achievements -------------- Everything Is Under Control Challenges ------------ None Game ------ Seed SalvagePropulsionBay Manual? 0 Play Time 00:23:12 Cumulative 0.8 hours Start 2024.04.01 @ 16:17:04 End 2024.04.01 @ 16:58:34 Sessions 1 Manual Loads 0 Difficulty Rogue Special Mode None Game No. 2 Rogue 2 Adventurer 0 Explorer 0 Win Type - Total 0 Types 0/0/0/0/0/0/0/0/0 Lore% 0 Gallery% 3 Achievement% 3 Wizard Run 0 Options --------- Layout 1 ASCII 0 Keyboard 0 Movement Arrows Keybinds 0 Fullscreen 1 Font 20/SmallcapsGlow Map View 56x45 Zoom Use 0% Tactical HUD 0 Map Filters NONE Filters NONE Steam 1 RUN: 6a8e8127-6095-4974-bf40-f6d4243482fb